bitfinex/quotes_ETHUSD_20250413
["timestamp","ask_amount","ask_price","bid_price","bid_amount"]
[1744539057845,16.6104333,1620.1,1620.0,7.1e-06]
[1744539058564,14.93711574,1620.1,1620.0,7.1e-06]
[1744539058736,21.04711574,1620.1,1620.0,7.1e-06]
[1744539066084,26.59211574,1620.1,1620.0,7.1e-06]
[1744539066446,28.72597005,1620.1,1620.0,7.1e-06]
[1744539066647,27.14211574,1620.1,1620.0,7.1e-06]
[1744539068287,9.17588,1619.2,1618.7,0.3944371]
[1744539068472,6.17741,1618.8,1618.7,0.3944371]
[1744539068972,6.97059877,1618.8,1618.7,0.3944371]
[1744539070155,7.79059877,1618.8,1618.7,0.3944371]
[1744539070484,12.09915177,1618.8,1618.7,0.3944371]
[1744539071396,12.64915177,1618.8,1618.7,0.3944371]
[1744539074372,12.64915177,1618.8,1618.7,7.1e-06]
[1744539074373,18.75915177,1618.8,1618.7,7.1e-06]
[1744539075308,19.25915177,1618.8,1618.7,7.1e-06]
[1744539076105,18.70915177,1618.8,1618.7,7.1e-06]
[1744539076316,18.20915177,1618.8,1618.7,7.1e-06]
[1744539077418,16.90059877,1618.8,1618.7,7.1e-06]
[1744539078565,16.08059877,1618.8,1618.7,7.1e-06]
[1744539079177,17.43479877,1618.8,1618.7,7.1e-06]
[1744539081097,9.72779,1618.7,1618.1,0.02]
[1744539081261,9.1797,1618.2,1618.1,0.02]
[1744539081467,9.95314306,1618.2,1618.1,0.02]
[1744539085772,6.95314306,1618.2,1618.1,0.02]
[1744539088216,0.77344306,1618.2,1618.1,0.02]
[1744539088373,0.77344306,1618.2,1618.1,0.8215]
[1744539088577,0.77344306,1618.2,1618.1,7.00158]
[1744539088787,6.1786,1618.5,1618.3,0.8015]
[1744539089108,6.17793,1618.7,1618.3,6.17908]
[1744539089322,6.17747,1618.8,1618.5,6.97993]
[1744539089629,6.17747,1618.8,1618.5,0.8015]
[1744539089630,6.17768,1618.8,1618.5,0.8015]
[1744539089778,12.35538,1618.8,1618.5,0.8015]
[1744539089981,12.35538,1618.8,1618.5,1.43194032]
[1744539090785,6.64125583,1618.9,1618.6,6.97967]
[1744539091018,6.17711,1618.9,1618.6,6.72967]
[1744539091420,6.17669,1619.0,1618.8,0.7961]
[1744539091888,6.17634,1619.1,1618.8,0.7961]
[1744539092210,6.17634,1619.1,1618.8,2.111243]
[1744539092416,6.17634,1619.1,1618.8,8.288633]
[1744539092736,6.17553,1619.3,1618.9,6.17702]
[1744539093031,6.17553,1619.3,1619.0,0.7961]
[1744539093591,0.5,1619.2,1619.0,0.7961]
[1744539093821,0.5,1619.2,1619.0,1.493412]
[1744539094013,12.35053,1619.4,1619.0,6.97254]
[1744539094214,6.17512,1619.4,1619.1,0.7961]
[1744539094725,12.3505,1619.4,1619.1,0.7961]
[1744539095828,6.17512,1619.4,1619.1,0.7961]
[1744539096333,12.35051,1619.4,1619.1,0.7961]
[1744539096498,12.35051,1619.4,1619.1,1.493354]
[1744539097126,6.17512,1619.4,1619.1,1.493354]
[1744539097329,12.35048,1619.4,1619.1,1.493354]
[1744539097629,0.70825906,1619.3,1619.1,1.493354]
[1744539098014,3.45409196,1619.6,1619.2,6.94578]
[1744539098015,6.17478,1619.5,1619.2,6.94578]
[1744539098219,6.17478,1619.5,1619.2,8.3276974]
[1744539098929,6.17525,1619.4,1619.2,2.1518174]
[1744539099434,6.17525,1619.4,1619.2,0.7699]
[1744539100594,12.35065,1619.4,1619.2,0.7699]
[1744539101011,6.17525,1619.4,1619.2,0.7699]
[1744539102020,12.35057,1619.4,1619.2,0.7699]
[1744539102578,6.17525,1619.4,1619.2,0.7699]
[1744539104046,15.34894,1619.6,1619.2,6.94564]
[1744539104245,15.34894,1619.6,1619.2,7.7099294]
[1744539104460,15.34894,1619.6,1619.3,0.8268]
[1744539104634,9.17444,1619.6,1619.3,0.8268]
[1744539104834,6.62973971,1619.8,1619.3,0.8268]
[1744539105034,6.17409,1619.7,1619.5,0.8268]
[1744539106228,12.34824,1619.7,1619.5,0.8268]
[1744539108668,6.17436,1619.6,1619.5,0.8268]
[1744539109680,12.34843,1619.7,1619.5,0.8268]
[1744539112078,6.17409,1619.7,1619.5,0.8268]
[1744539112265,12.34827,1619.7,1619.5,0.8268]
[1744539112680,0.72181282,1619.6,1619.5,0.8268]
[1744539114970,12.34742,1619.8,1619.5,0.8268]
[1744539115172,0.72181282,1619.6,1619.5,0.8268]
[1744539115361,12.34742,1619.8,1619.5,0.8268]
[1744539115674,0.72181282,1619.7,1619.5,0.8268]
[1744539115869,0.72181282,1619.7,1619.5,7.00152]
[1744539116685,0.72181282,1619.7,1619.5,7.00141]
[1744539119142,6.89599282,1619.7,1619.5,0.8268]
[1744539119367,0.72181282,1619.7,1619.5,7.00153]
[1744539119968,0.72181282,1619.7,1619.5,0.8268]
[1744539120163,6.89580282,1619.7,1619.5,0.8268]
[1744539121068,13.06997282,1619.7,1619.5,0.8268]
[1744539121376,0.72181282,1619.7,1619.5,0.8268]
[1744539121686,0.72181282,1619.7,1619.5,7.0014]
[1744539122767,0.72181282,1619.7,1619.6,6.17436]
[1744539122965,6.17301,1620.0,1619.6,6.95706]
[1744539123149,0.6680881,1619.9,1619.8,6.1736]
[1744539123350,6.17254,1620.1,1619.8,6.1736]
[1744539123550,0.6680881,1620.0,1619.8,6.1736]
[1744539123746,0.6680881,1620.0,1619.8,7.486473]
[1744539124685,0.6680881,1620.0,1619.9,6.95592]
[1744539125098,6.17184,1620.3,1619.9,13.12894]
[1744539125385,6.17356,1619.9,1619.5,8.274967]
[1744539125558,6.98436,1619.9,1619.5,6.95733]
[1744539125765,6.17433,1619.7,1619.4,0.7827]
[1744539125964,0.6680881,1619.6,1619.4,0.7827]
[1744539126185,6.8425981,1619.6,1619.4,0.7827]
[1744539126383,13.0172281,1619.6,1619.3,6.8962]
[1744539126790,0.6680881,1619.6,1619.3,15.07280094]
[1744539126987,0.6680881,1619.6,1619.3,21.24814094]
[1744539127291,12.34826,1619.7,1619.3,21.24814094]
[1744539127487,6.17362,1619.8,1619.5,6.1747]
[1744539127686,0.6680881,1619.6,1619.5,6.1747]
[1744539127888,6.17401,1619.7,1619.4,6.17502]
[1744539128185,0.6680881,1619.6,1619.4,14.47480809]
[1744539128592,0.6680881,1619.6,1619.5,6.17474]
[1744539128786,0.6680881,1619.6,1619.5,6.97394]
[1744539128993,6.17292,1620.0,1619.6,6.17405]
[1744539129189,12.34519,1620.1,1619.8,0.7992]
[1744539129487,6.17211,1620.2,1619.8,6.97255]
[1744539129659,6.17211,1620.2,1619.8,13.8433]
[1744539130283,12.34442,1620.2,1619.8,7.66985]
[1744539131070,6.17248,1620.1,1619.8,7.66985]
[1744539132662,0.7881,1620.2,1619.7,6.096]
[1744539132886,6.17333,1619.9,1619.7,6.096]
[1744539135196,6.17286,1620.0,1619.6,13.15149]
[1744539135411,6.17286,1620.0,1619.7,6.17395]
[1744539135562,12.34588,1620.0,1619.7,6.17395]
[1744539135765,6.17286,1620.0,1619.7,12.34781]
[1744539135991,6.17286,1620.0,1619.7,12.34772]
[1744539136177,6.17286,1620.0,1619.7,6.17386]
[1744539136981,6.17249,1620.1,1619.9,0.8269]
[1744539137400,12.34513,1620.1,1619.8,0.8269]
[1744539137606,6.17249,1620.1,1619.8,7.00049]
[1744539138949,6.98782,1620.2,1619.9,0.8269]
[1744539139244,6.17232,1620.2,1619.9,0.8269]
[1744539139445,13.15916,1620.3,1619.9,7.699986]
[1744539139751,13.15916,1620.3,1619.9,13.873086]
[1744539140048,6.17175,1620.3,1620.0,6.17272]
[1744539140257,6.98687,1620.4,1620.0,12.3454]
[1744539140258,13.15834,1620.4,1620.0,12.3454]
[1744539140932,6.98687,1620.4,1620.0,12.3454]
[1744539141248,6.98687,1620.4,1620.0,13.7326336]
[1744539141449,13.15853,1620.4,1620.0,7.5599136]
[1744539141617,6.98687,1620.4,1620.0,7.5599136]
[1744539141932,6.17171,1620.3,1620.0,7.5599136]
[1744539142329,6.17171,1620.3,1620.0,13.7325836]
[1744539142543,0.67617227,1620.2,1620.1,6.17244]
[1744539142837,6.17102,1620.5,1620.1,8.32757436]
[1744539143015,0.62190137,1620.2,1620.1,8.32757436]
[1744539143417,6.17102,1620.5,1620.1,8.32757436]
[1744539143607,0.62422095,1620.2,1620.1,8.32757436]
[1744539143808,6.17102,1620.5,1620.1,8.32757436]
[1744539143809,6.17102,1620.5,1620.2,6.17199]
[1744539144216,12.26622,1620.7,1620.3,6.95348]
[1744539144401,6.96852,1620.8,1620.4,6.17114]
[1744539144605,6.16982,1620.8,1620.4,6.17131]
[1744539145136,6.16982,1620.8,1620.5,6.17092]
[1744539145321,12.33979,1620.8,1620.4,6.17131]
[1744539145528,6.17018,1620.7,1620.4,0.695321]
[1744539145837,6.17056,1620.6,1620.4,0.695321]
[1744539146606,12.34054,1620.7,1620.4,0.695321]
[1744539146825,6.17018,1620.7,1620.4,0.695321]
[1744539147033,6.16985,1620.8,1620.4,13.037621]
[1744539147335,6.16985,1620.8,1620.5,7.4746121]
[1744539147529,6.16985,1620.8,1620.6,0.8329]
[1744539147835,6.96819,1620.9,1620.6,0.8329]
[1744539148037,13.1379,1620.9,1620.6,0.8329]
[1744539148539,6.16918,1621.0,1620.7,6.17005]
[1744539148739,6.16918,1621.0,1620.8,0.617005]
[1744539148900,6.94117,1621.1,1620.8,0.617005]
[1744539149107,6.16899,1621.1,1620.8,1.449905]
[1744539149309,6.8665,1621.2,1620.6,6.9269]
[1744539149528,6.16976,1620.9,1620.6,6.9269]
[1744539149841,6.1693,1621.0,1620.7,0.8329]
[1744539150014,6.9418,1621.0,1620.7,0.8329]
[1744539150438,6.16953,1620.9,1620.7,0.8329]
[1744539150641,6.16953,1620.9,1620.7,2.142637]
[1744539150834,6.9418,1621.0,1620.7,2.142637]
[1744539151039,13.11104,1621.0,1620.7,2.142637]
[1744539151402,13.11479,1621.2,1620.8,6.16962]
[1744539152215,6.16869,1621.1,1620.7,8.312747]
[1744539152408,6.16834,1621.2,1620.9,6.95795]
[1744539152739,6.16834,1621.2,1620.9,13.12723]
[1744539152934,12.33603,1621.3,1620.9,13.12724]
[1744539153137,6.16795,1621.3,1621.0,6.16881]
[1744539153507,12.33607,1621.3,1620.9,13.12736]
[1744539153707,12.33605,1621.3,1621.0,1.312736]
[1744539154539,6.96569,1621.4,1621.0,13.650596]
[1744539154734,0.02,1621.4,1621.1,6.16851]
[1744539154941,6.18767,1621.4,1621.1,6.16851]
[1744539155337,6.18767,1621.4,1621.1,6.95721]
[1744539155539,0.02,1621.4,1621.0,1.312736]
[1744539156163,12.33613,1621.3,1621.0,1.312736]
[1744539157310,6.16788,1621.3,1621.0,1.312736]
[1744539157579,0.55376055,1621.2,1621.0,1.312736]
[1744539159016,0.55376055,1621.2,1621.0,7.481596]
[1744539159217,0.55376055,1621.2,1621.1,0.7481596]
[1744539160646,6.72203055,1621.2,1621.1,0.7481596]
[1744539160844,6.16865,1621.1,1620.9,0.7887]
[1744539161053,6.16865,1621.1,1620.8,7.0010247]
[1744539161223,12.3375,1621.1,1620.8,0.8312747]
[1744539161426,0.55376055,1621.0,1620.8,6.16961]
[1744539161645,0.55376055,1621.0,1620.8,12.33925]
[1744539161956,6.16835,1621.2,1620.8,12.33925]
[1744539162128,0.55376055,1621.1,1620.8,12.33925]
[1744539162319,6.16835,1621.2,1620.8,12.33925]
[1744539162526,0.55850772,1621.1,1620.9,6.94789]
[1744539162732,0.55850772,1621.1,1620.9,6.94786]
[1744539162943,0.55850772,1621.0,1620.9,6.94786]
[1744539163136,13.09678,1621.3,1620.9,13.11715]
[1744539163326,6.72706772,1621.2,1620.9,0.7786]
[1744539163526,12.89566772,1621.2,1620.9,0.7786]
[1744539163928,6.16866,1621.1,1620.9,0.7786]
[1744539164169,0.55841818,1621.0,1620.9,0.7786]
[1744539166260,0.55841818,1621.0,1620.9,6.94801]
[1744539166456,6.16856,1621.2,1620.9,6.94801]
[1744539166660,0.55806002,1621.0,1620.9,6.94786]
[1744539166959,6.16794,1621.3,1621.0,6.16902]
[1744539167126,12.33618,1621.3,1620.9,8.259607]
[1744539167327,6.16794,1621.3,1620.9,8.259607]
[1744539167524,6.16843,1621.2,1620.9,8.259607]
[1744539168145,6.16843,1621.2,1620.9,14.428867]
[1744539168957,6.16843,1621.2,1620.9,14.428877]
[1744539169159,6.16843,1621.2,1620.9,8.259607]
[1744539169569,0.7794,1621.1,1620.8,6.16978]
[1744539169767,6.94806,1621.1,1620.8,6.16978]
[1744539169967,6.94806,1621.1,1620.8,12.33941]
[1744539171967,13.11691,1621.1,1620.8,6.16963]
[1744539172169,6.94806,1621.1,1620.8,6.16963]
[1744539172339,6.94806,1621.1,1620.8,12.33928]
[1744539172638,6.94806,1621.1,1620.8,6.16963]
[1744539172870,0.55806002,1621.0,1620.8,12.33927]
[1744539173035,0.55806002,1621.0,1620.8,13.952157]
[1744539173969,0.55806002,1621.0,1620.8,7.782517]
[1744539174168,0.55806002,1621.0,1620.8,13.952157]
[1744539174466,0.55806002,1621.0,1620.8,7.782517]
[1744539174963,6.94806,1621.1,1620.8,7.782517]
[1744539175171,0.55761235,1620.9,1620.8,7.782517]
[1744539175664,6.94806,1621.1,1620.8,7.782517]
[1744539175840,0.55761235,1620.9,1620.8,7.782517]
[1744539176041,13.11687,1621.1,1620.8,7.782517]
[1744539176247,0.55761235,1620.9,1620.8,7.782517]
[1744539176457,6.16979,1620.8,1620.5,6.94337]
[1744539176659,6.16979,1620.8,1620.5,13.11414]
[1744539176877,0.55734372,1620.7,1620.6,6.17055]
[1744539177096,0.55734372,1620.7,1620.6,6.94315]
[1744539177385,6.94806,1621.1,1620.8,6.16966]
[1744539177590,0.55734372,1621.0,1620.8,6.16966]
[1744539178020,0.55734372,1621.0,1620.8,7.40364]
[1744539178562,0.55734372,1621.0,1620.8,6.16966]
[1744539178971,0.55734372,1621.0,1620.8,6.94226]
[1744539180089,0.55734372,1621.0,1620.8,0.7726]
[1744539180295,6.72639372,1621.0,1620.7,6.17013]
[1744539180499,0.8061,1620.9,1620.6,6.94306]
[1744539180708,1.36281687,1620.9,1620.6,6.94304]
[1744539180914,0.55671687,1620.9,1620.7,6.17011]
[1744539181363,0.55671687,1620.9,1620.8,6.16979]
[1744539181569,13.13492,1621.2,1620.9,0.7731]
[1744539181778,0.5564482,1621.1,1620.9,0.7731]
[1744539182082,13.13492,1621.2,1620.9,0.7731]
[1744539182409,6.16888,1621.1,1620.9,0.7731]
[1744539182597,0.5564482,1621.0,1620.9,0.7731]
[1744539183309,6.7254782,1621.0,1620.7,6.94078]
[1744539183464,6.7254782,1621.0,1620.7,8.32590717]
[1744539184302,12.8947282,1621.0,1620.7,8.32590717]
[1744539184599,6.16945,1620.9,1620.7,2.15582717]
[1744539185099,0.5564482,1620.8,1620.7,2.15582717]
[1744539185397,0.5564482,1620.8,1620.5,6.17083]
[1744539185696,6.7265182,1620.8,1620.5,6.94153]
[1744539186807,0.5564482,1620.8,1620.5,6.94148]
[1744539186972,0.5564482,1620.8,1620.6,6.17053]
[1744539188302,0.5564482,1620.8,1620.5,13.11227]
[1744539188470,0.5564482,1620.8,1620.5,15.032797]
[1744539189402,12.8963082,1620.8,1620.5,8.862007]
[1744539189573,6.7262382,1620.8,1620.5,6.94148]
[1744539194513,6.7262382,1620.8,1620.5,6.9416]
[1744539194718,6.7262382,1620.8,1620.5,13.11233]
[1744539194914,0.5564482,1620.8,1620.5,0.7707]
[1744539195112,0.5564482,1620.8,1620.7,6.17017]
[1744539195311,6.16871,1621.1,1620.7,1.314284]
[1744539195312,12.33756,1621.1,1620.7,1.314284]
[1744539195517,0.55403006,1620.8,1620.7,12.33997]
[1744539195819,12.33756,1621.1,1620.7,12.33997]
[1744539196023,19.2129,1621.2,1620.8,6.97184]
[1744539196177,19.2129,1621.2,1620.9,6.16938]
[1744539196178,6.95346,1621.2,1620.9,6.16938]
[1744539196498,0.55277614,1621.1,1620.9,12.33863]
[1744539196704,6.95346,1621.2,1621.0,1.233863]
[1744539196875,6.16836,1621.2,1621.0,1.233863]
[1744539197224,6.16865,1621.1,1621.0,1.233863]
[1744539197517,6.16865,1621.1,1620.8,13.14166]
[1744539197819,6.16865,1621.1,1620.8,6.97195]
[1744539198518,6.16836,1621.2,1620.8,6.97195]
[1744539198676,6.16836,1621.2,1620.9,6.1693]
[1744539199795,0.7534,1621.3,1620.8,6.972]
[1744539200136,13.0913,1621.1,1620.8,0.6972]
[1744539200690,12.33831,1621.0,1620.7,6.94912]
[1744539201395,6.16982,1620.8,1620.5,6.93382]
[1744539201598,12.33977,1620.8,1620.5,6.93382]
[1744539201936,6.16982,1620.8,1620.5,6.93382]
[1744539202824,0.55429873,1620.7,1620.5,6.93382]
[1744539203024,0.55429873,1620.7,1620.5,8.90030935]
[1744539203339,6.16982,1620.8,1620.5,8.90030935]
[1744539203819,0.55429873,1620.7,1620.5,8.90030935]
[1744539204217,6.16982,1620.8,1620.5,8.90030935]
[1744539204813,0.55268657,1620.7,1620.5,8.90030935]
[1744539205032,0.55268657,1620.7,1620.6,6.17055]
[1744539205242,6.94627,1620.9,1620.6,1.50708594]
[1744539205540,6.72247657,1620.8,1620.5,8.90030935]
[1744539205722,12.89251657,1620.8,1620.5,2.72948935]
[1744539206027,6.72247657,1620.8,1620.5,2.72948935]
[1744539206228,6.72247657,1620.8,1620.5,8.90036935]
[1744539208326,6.72247657,1620.8,1620.5,15.07115935]
[1744539208532,0.55268657,1620.8,1620.5,15.07115935]
[1744539209025,6.72247657,1620.8,1620.5,8.90027935]
[1744539209802,12.89243657,1620.8,1620.5,8.90027935]
[1744539212342,6.72247657,1620.8,1620.5,15.07109935]
[1744539212501,6.72247657,1620.8,1620.5,8.90027935]
[1744539213533,12.89242657,1620.8,1620.5,2.72948935]
[1744539213725,12.89242657,1620.8,1620.5,0.763]
[1744539214837,6.1703,1620.7,1620.4,6.8849]
[1744539215034,6.72253657,1620.8,1620.4,13.0561]
[1744539215283,12.33981,1620.8,1620.5,6.17078]
[1744539215467,12.33981,1620.8,1620.4,19.22728]
[1744539215627,0.55241782,1620.7,1620.4,21.19574964]
[1744539215831,0.7882,1620.6,1620.1,3.7919]
[1744539216153,0.7882,1620.6,1620.0,52.907]
[1744539216154,6.95881,1620.6,1620.0,53.6989]
[1744539216359,12.3438,1620.3,1620.0,53.6989]
[1744539216561,6.17207,1620.2,1620.0,52.907]
[1744539216730,12.3444,1620.2,1620.0,59.0519596]
[1744539216934,6.99948,1620.0,1619.7,0.8129]
[1744539217175,6.17328,1619.9,1619.6,6.57853868]
[1744539217476,6.72342966,1619.8,1619.6,6.57853868]
[1744539217653,6.17398,1619.7,1619.6,6.57853868]
[1744539217834,7.54760056,1619.7,1619.6,6.57853868]
[1744539220433,7.54760056,1619.7,1619.4,6.1751]
[1744539220965,7.54760056,1619.7,1619.4,7.410145]
[1744539225253,1.37362056,1619.7,1619.5,6.17467]
[1744539225880,1.37362056,1619.7,1619.4,7.410045]
[1744539226687,1.37362056,1619.7,1619.4,12.35001]
[1744539227889,1.37362056,1619.7,1619.4,6.175]
[1744539228288,1.37362056,1619.7,1619.4,12.34996]
[1744539229184,1.37362056,1619.7,1619.4,6.17496]
[1744539229576,13.72192056,1619.7,1619.3,6.17543]
[1744539229756,13.72192056,1619.7,1619.3,12.3203896]
[1744539230158,7.54761056,1619.7,1619.3,18.4957596]
[1744539230451,6.17464,1619.6,1619.2,7.46216758]
[1744539230656,6.17464,1619.6,1619.2,13.63793758]
[1744539230869,0.53494004,1619.5,1619.3,6.1755]
[1744539231556,6.17531,1619.4,1619.1,12.27021]
[1744539231890,6.17554,1619.3,1619.1,6.094]
[1744539232062,6.97691,1619.4,1619.1,6.17615]
[1744539232267,0.53386378,1619.3,1619.1,6.17615]
[1744539232468,6.17436,1619.6,1619.2,6.17574]
[1744539232469,6.97596,1619.6,1619.2,6.17574]
[1744539232671,0.53386378,1619.5,1619.3,6.17539]
[1744539234289,0.53386378,1619.5,1619.3,6.97595]
[1744539234496,6.17406,1619.7,1619.3,6.97595]
[1744539234790,0.53135191,1619.6,1619.4,6.17512]
[1744539236396,6.70584191,1619.6,1619.3,6.97595]
[1744539236580,12.88046191,1619.6,1619.3,6.97595]
[1744539236790,6.70584191,1619.6,1619.3,6.97595]
[1744539238680,0.53135191,1619.6,1619.3,2.115776]
[1744539238880,13.14905,1619.8,1619.5,6.17474]
[1744539239077,0.53189024,1619.7,1619.5,6.17474]
[1744539239769,0.53189024,1619.7,1619.4,12.34991]
[1744539240313,0.53189024,1619.7,1619.5,6.17449]
[1744539243012,0.53189024,1619.7,1619.6,0.7725]
[1744539243170,0.53189024,1619.7,1619.6,7.641559]
[1744539243602,13.13794,1620.0,1619.6,13.815919]
[1744539243806,0.4864361,1619.7,1619.6,13.12122]
[1744539244306,13.13794,1620.0,1619.6,6.94686]
[1744539244505,0.4864361,1619.7,1619.6,6.94686]
[1744539244694,6.17338,1619.9,1619.6,6.94686]
[1744539244875,0.4864361,1619.8,1619.6,13.12122]
[1744539245076,13.13804,1620.0,1619.6,14.433342]
[1744539245276,0.4864361,1619.9,1619.6,13.12122]
[1744539245907,0.4864361,1619.9,1619.6,6.94686]
[1744539246297,6.6596561,1619.9,1619.6,6.9467]
[1744539246470,6.6596561,1619.9,1619.6,13.12091]
[1744539246675,0.4864361,1619.9,1619.8,6.1736]
[1744539246877,0.8222,1620.2,1619.9,6.99815]
[1744539247077,0.4864361,1620.1,1620.0,6.17267]
[1744539247277,6.17171,1620.3,1619.9,6.99832]
[1744539247490,6.6586461,1620.2,1619.9,13.17139]
[1744539247711,6.6586461,1620.2,1619.9,14.612003]
[1744539248005,0.4864361,1620.2,1619.9,14.612003]
[1744539248510,0.4864361,1620.2,1619.9,8.438883]
[1744539248712,0.4864361,1620.2,1619.9,6.99827]
[1744539249007,0.4864361,1620.2,1619.9,13.17134]
[1744539249810,0.4864361,1620.2,1620.0,6.17275]
[1744539250011,0.4864361,1620.2,1620.1,6.17245]
[1744539250478,6.99359,1620.4,1620.1,6.17245]
[1744539250812,0.4864361,1620.3,1620.1,1.23452]
[1744539251214,13.16509,1620.4,1620.1,1.23452]
[1744539251385,0.4864361,1620.2,1620.1,7.40697]
[1744539251601,12.34309,1620.4,1620.1,1.23452]
[1744539251807,0.4864361,1620.2,1620.1,1.23452]
[1744539252019,6.17142,1620.4,1620.1,1.23452]
[1744539252193,0.4864361,1620.2,1620.1,1.23452]
[1744539252396,12.343,1620.4,1620.1,1.23452]
[1744539252593,0.4913835,1620.2,1620.1,1.23452]
[1744539252845,12.343,1620.4,1620.1,1.23452]
[1744539253032,0.4913835,1620.2,1620.1,1.23452]
[1744539253629,6.93139,1620.3,1620.1,1.23452]
[1744539253807,0.4913835,1620.2,1620.0,6.17266]
[1744539255538,0.4913835,1620.2,1620.0,12.34537]
[1744539255833,0.4913835,1620.2,1620.1,6.17245]
[1744539256321,6.93092,1620.4,1620.1,6.17245]
[1744539256631,0.4913835,1620.2,1620.1,6.17245]
[1744539256934,6.95763,1620.6,1620.3,6.17166]
[1744539257106,6.95721,1620.7,1620.4,0.7886]
[1744539257320,0.787,1620.7,1620.4,6.95969]
[1744539257645,13.12671,1620.8,1620.4,13.13088]
[1744539257943,13.12681,1620.8,1620.4,13.13088]
[1744539258128,13.12681,1620.8,1620.4,14.443968]
[1744539258534,6.95679,1620.8,1620.4,14.443968]
[1744539258737,6.16945,1620.9,1620.5,6.17073]
[1744539258913,13.12536,1621.0,1620.6,12.34084]
[1744539259121,6.95613,1621.0,1620.7,6.95873]
[1744539259323,6.16913,1621.0,1620.7,8.271643]
[1744539260453,6.878,1621.2,1620.7,2.101513]
[1744539260652,6.16885,1621.1,1620.7,0.7886]
[1744539260847,12.33784,1621.1,1620.7,6.95861]
[1744539262627,0.50271288,1621.0,1620.7,13.12866]
[1744539262824,6.67182288,1621.0,1620.7,6.95861]
[1744539263031,6.16964,1620.9,1620.5,9.17089]
[1744539263230,6.92504,1620.9,1620.6,0.917089]
[1744539263648,6.67261288,1620.8,1620.6,0.917089]
[1744539263832,6.67261288,1620.8,1620.5,0.7502]
[1744539264157,6.17017,1620.7,1620.4,14.325418]
[1744539264709,0.50271288,1620.6,1620.4,14.325418]
[1744539264909,6.17017,1620.7,1620.4,14.325418]
[1744539265143,0.50271288,1620.6,1620.4,14.325418]
[1744539265547,6.17017,1620.7,1620.4,14.325418]
[1744539265736,0.50271288,1620.5,1620.4,14.325418]
[1744539265917,6.17017,1620.7,1620.4,14.325418]
[1744539266118,0.50271288,1620.6,1620.4,14.325418]
[1744539266321,6.17017,1620.7,1620.4,14.325418]
[1744539266611,0.50271288,1620.6,1620.4,14.325418]
[1744539266944,6.17017,1620.7,1620.4,14.325418]
[1744539267151,0.50271288,1620.5,1620.4,14.325418]
[1744539267347,6.17017,1620.7,1620.4,14.325418]
[1744539267550,0.50271288,1620.5,1620.4,14.325418]
[1744539267730,6.16987,1620.8,1620.5,6.1709]
[1744539267921,0.50271288,1620.7,1620.5,6.1709]
[1744539269079,0.50271288,1620.7,1620.5,14.3913518]
[1744539269219,0.50271288,1620.7,1620.6,6.95685]
[1744539269419,6.967,1621.1,1620.7,6.17003]
[1744539270129,6.16908,1621.0,1620.7,6.17003]
[1744539271141,12.33829,1621.0,1620.7,6.17003]
[1744539271543,12.33829,1621.0,1620.6,13.12726]
[1744539271760,6.16948,1620.9,1620.7,1.312726]
[1744539272056,6.17037,1620.7,1620.4,14.380898]
[1744539272850,6.17037,1620.7,1620.4,8.289898]
[1744539273524,6.17037,1620.7,1620.4,1.313088]
[1744539273824,6.17067,1620.6,1620.3,6.17161]
[1744539274561,6.17067,1620.6,1620.3,12.34315]
[1744539274746,6.17067,1620.6,1620.3,6.17154]
[1744539276531,6.17067,1620.6,1620.3,12.34311]
[1744539277561,0.50621884,1620.5,1620.3,12.34311]
[1744539277880,0.50621884,1620.5,1620.3,8.095311]
[1744539278567,1.28221884,1620.5,1620.3,1.923771]
[1744539278754,7.45325884,1620.5,1620.2,13.06661]
[1744539279760,6.94704,1620.5,1620.2,13.06661]
[1744539279942,6.94704,1620.5,1620.2,13.06655]
[1744539280468,6.94704,1620.5,1620.2,13.06665]
[1744539280767,0.50621884,1620.4,1620.2,13.06665]
[1744539280969,0.50621884,1620.4,1620.2,14.990552]
[1744539283269,0.50621884,1620.4,1620.3,6.17169]
[1744539283566,6.97571,1620.7,1620.3,12.34338]
[1744539283867,0.5026241,1620.4,1620.3,6.17169]
[1744539284046,6.17058,1620.6,1620.3,6.17169]
[1744539284247,0.5026241,1620.4,1620.3,6.17169]
[1744539284449,6.17058,1620.6,1620.3,8.2879072]
[1744539285065,0.5026241,1620.5,1620.3,8.2879072]
[1744539285267,0.5026241,1620.5,1620.3,14.4594572]
[1744539285469,0.5026241,1620.5,1620.4,6.17131]
[1744539285651,6.9758,1620.7,1620.4,6.17131]
[1744539285839,0.5026241,1620.5,1620.4,7.61721772]
[1744539286038,13.14615,1620.7,1620.4,7.61721772]
[1744539286252,0.5026241,1620.5,1620.4,7.61721772]
[1744539286447,6.9758,1620.7,1620.4,7.61721772]
[1744539286775,13.14615,1620.7,1620.4,7.61721772]
[1744539286975,0.5026241,1620.6,1620.4,7.61721772]
[1744539287176,0.5026241,1620.6,1620.5,0.76172177]
[1744539287377,13.14615,1620.7,1620.5,0.76172177]
[1744539287581,0.5026241,1620.6,1620.5,0.76172177]
[1744539287975,13.14615,1620.7,1620.5,0.76172177]
[1744539288176,0.5026241,1620.6,1620.5,0.76172177]
[1744539288377,13.14615,1620.7,1620.5,0.76172177]
[1744539288578,0.5026241,1620.6,1620.5,0.76172177]
[1744539288978,6.9758,1620.7,1620.5,0.76172177]
[1744539289150,0.5026241,1620.6,1620.5,0.76172177]
[1744539289359,6.9758,1620.7,1620.5,0.76172177]
[1744539289559,0.5026241,1620.6,1620.5,0.76172177]
[1744539290081,6.9758,1620.7,1620.5,0.76172177]
[1744539290258,0.5026241,1620.6,1620.5,0.76172177]
[1744539290780,6.9758,1620.7,1620.5,0.76172177]
[1744539290982,0.5026241,1620.6,1620.4,7.61721772]
[1744539291481,13.14617,1620.7,1620.4,7.61721772]
[1744539291781,6.9758,1620.7,1620.4,7.61721772]
[1744539291978,0.47889876,1620.6,1620.4,7.61721772]
[1744539292487,6.9758,1620.7,1620.4,7.61721772]
[1744539292651,0.47893737,1620.5,1620.4,7.61721772]